fUSD/lending_fUSD_20240627
["ID","MTS","AMOUNT","RATE_DAILY","PERIOD"]
[330493974,1719509434160,-1000.0,0.000209,2]
[330493975,1719509434170,-1000.0,0.000209,2]
[330493976,1719509434180,-1000.0,0.000209,2]
[330493977,1719509434192,-1000.0,0.000209,2]
[330493978,1719509434205,-1000.0,0.000209,2]
[330493979,1719509434217,-375.0,0.000209,2]
[330493980,1719509434226,-1000.0,0.00021,4]
[330493981,1719509434238,-1250.0,0.00021,2]
[330493982,1719509434247,-202.785526,0.00021,2]
[330493983,1719509434257,-500.0,0.0002107,2]
[330493984,1719509434268,-416.13,0.00021084,2]
[330493985,1719509434278,-318.11062296,0.00021095,2]
[330493986,1719509434287,-167.0,0.00021157,2]
[330493987,1719509434297,-5796.35817051,0.00021185,3]
[330493988,1719509434307,-151.0,0.00021202,2]
[330493989,1719509434317,-593.29470806,0.00021384,2]
[330493990,1719509434327,-997.1,0.000214,2]
[330493991,1719509434337,-5796.35817051,0.00021609,3]
[330493992,1719509434347,-8328.11025038,0.00021619,2]
[330493993,1719509434357,-176.19,0.00021644,2]
[330493994,1719509434368,-461.37,0.00021644,2]
[330493995,1719509434378,-156.42,0.00021644,2]
[330493996,1719509434389,-158.1,0.00021644,2]
[330493997,1719509434398,-184.64,0.00021681,2]
[330493998,1719509434408,-151.0,0.00021798,2]
[330493999,1719509434417,-997.1,0.000218,2]
[330494000,1719509434427,-1411.0,0.000218,2]
[330494001,1719509434436,-167.0,0.00021856,2]
[330494002,1719509434449,-593.29470806,0.00021886,2]
[330494003,1719509434459,-500.0,0.000219,7]
[330494004,1719509434468,-824.96,0.00021918,2]
[330494005,1719509434477,-170.38,0.00021918,2]
[330494006,1719509434486,-5796.35817051,0.00021996,3]
[330494007,1719509434495,-431.0,0.00022,4]
[330494008,1719509434504,-220.18,0.00022,2]
[330494009,1719509434514,-1100.0,0.00022,8]
[330494010,1719509434524,-1896.75207388,0.00022006,2]
[330494011,1719509434534,-500.0,0.00022029,2]
[330494012,1719509434543,-8328.11025038,0.00022043,2]
[330494013,1719509434554,-5796.35817051,0.0002209,3]
[330494014,1719509434564,-571.7322181,0.00022091,2]
[330494015,1719509434574,-583.0,0.000221,2]
[330494016,1719509434584,-1600.0,0.000221,8]
[330494017,1719509434594,-4292.23412009,0.00022167,2]
[330494018,1719509434604,-4292.23412009,0.00022189,2]
[330494019,1719509434615,-5796.35817051,0.0002219,3]
[330494020,1719509434624,-2200.0,0.000222,8]
[330494021,1719509434635,-503.55280577,0.00022247,2]
[330494022,1719509434645,-211.8693393,0.00022279,2]
[330494023,1719509434654,-933.35775737,0.00022279,2]
[330494024,1719509434664,-1224.90514239,0.00022281,2]
[330494025,1719509434676,-2700.0,0.000223,8]
[330494026,1719509434687,-593.29470806,0.00022388,2]
[330494027,1719509434698,-151.0,0.00022393,2]
[330494028,1719509434707,-500.0,0.000224,8]
[330494029,1719509434717,-503.55280577,0.00022455,2]
[330494030,1719509434727,-5796.35817051,0.00022456,3]
[330494031,1719509434736,-8328.11025038,0.00022466,2]
[330494032,1719509434745,-189.93839474,0.00022481,2]
[330494033,1719509434755,-57963.5817051,0.0002249,3]
[330494034,1719509434765,-503.55280577,0.00022491,2]
[330494035,1719509434775,-101495.86,0.000225,4]
[330494036,1719509434785,-151.0,0.000225,7]
[330494037,1719509434795,-151.0,0.000225,7]
[330494038,1719509434804,-167.366557,0.000225,7]
[330494039,1719509434814,-151.0,0.000225,7]
[330494040,1719509434824,-167.366557,0.000225,7]
[330494041,1719509434833,-151.0,0.000225,7]
[330494042,1719509434843,-254.271329,0.000225,7]
[330494043,1719509434853,-338.217794,0.000225,7]
[330494044,1719509434862,-254.271329,0.000225,7]
[330494045,1719509434872,-151.0,0.000225,7]
[330494046,1719509434882,-338.217794,0.000225,7]
[330494047,1719509434892,-924.565921,0.000225,7]
[330494048,1719509434902,-924.565921,0.000225,7]
[330494049,1719509434912,-151.0,0.000225,7]
[330494050,1719509434921,-184.139552,0.000225,7]
[330494051,1719509434931,-151.0,0.000225,7]
[330494052,1719509434940,-151.0,0.000225,7]
[330494053,1719509434951,-151.0,0.000225,7]
[330494054,1719509434961,-151.0,0.000225,7]
[330494055,1719509434971,-151.0,0.000225,7]
[330494056,1719509434982,-151.0,0.000225,7]
[330494057,1719509434991,-151.0,0.000225,7]
[330494058,1719509435001,-151.0,0.000225,7]
[330494059,1719509435011,-151.0,0.000225,7]
[330494060,1719509435021,-218.280347,0.000225,7]
[330494061,1719509435030,-218.280347,0.000225,7]
[330494062,1719509435039,-151.0,0.000225,7]
[330494063,1719509435048,-293.194421,0.000225,7]
[330494064,1719509435058,-500.0,0.000225,8]
[330494065,1719509435069,-161.09782061,0.00022518,2]
[330494066,1719509435079,-388.37037536,0.00022534,2]
[330494067,1719509435089,-167.0,0.00022554,2]
[330494068,1719509435099,-265.0,0.0002256,5]
[330494069,1719509435110,-4292.23412009,0.00022562,2]
[330494070,1719509435123,-477.60788594,0.0002259,2]
[330494071,1719509435133,-500.0,0.000226,8]
[330494072,1719509435143,-5796.35817051,0.00022613,3]
[330494073,1719509435152,-152.918136,0.00022614,2]
[330494074,1719509435163,-166.66666668,0.00022623,2]
[330494075,1719509435173,-1224.90514239,0.00022682,2]
[330494076,1719509435182,-500.0,0.000227,8]
[330494077,1719509435193,-189.93839474,0.00022709,2]
[330494078,1719509435206,-477.60788594,0.00022726,2]
[330494079,1719509435215,-5796.35817051,0.0002277,3]
[330494080,1719509435225,-7500.0,0.00022776,2]
[330494081,1719509435234,-184.29208948,0.00022781,2]
[330494082,1719509435243,-166.79469595,0.00022781,2]
[330494083,1719509435253,-5796.35817051,0.0002279,3]
[330494084,1719509435263,-5138.29370411,0.0002279,3]
[330494085,1719509435272,-2000.0,0.000228,2]
[330494086,1719509435281,-2000.0,0.000228,2]
[330494087,1719509435291,-2000.0,0.000228,2]
[330494088,1719509435301,-1184.7232,0.000228,2]
[330494089,1719509435311,-962.0,0.000228,8]
[330494090,1719509435320,-166.66666666,0.00022832,2]
[330494091,1719509435330,-5138.29370411,0.0002284,3]
[330494092,1719509435339,-5796.35817051,0.00022843,3]
[330494093,1719509435349,-5138.29370411,0.00022843,3]
[330494094,1719509435359,-920.634983,0.0002285,7]
[330494095,1719509435368,-920.634983,0.0002285,7]
[330494096,1719509435377,-151.0,0.0002285,7]
[330494097,1719509435386,-151.0,0.0002285,7]
[330494098,1719509435396,-151.0,0.0002285,7]
[330494099,1719509435405,-151.0,0.0002285,7]
[330494100,1719509435414,-259.076808,0.0002285,7]
[330494101,1719509435423,-151.0,0.0002285,7]
[330494102,1719509435433,-259.076808,0.0002285,7]
[330494103,1719509435442,-151.0,0.0002285,7]
[330494104,1719509435452,-358.579539,0.0002285,7]
[330494105,1719509435461,-151.0,0.0002285,7]
[330494106,1719509435472,-358.579539,0.0002285,7]
[330494107,1719509435481,-179.614179,0.0002285,7]
[330494108,1719509435491,-237.032207,0.0002285,7]
[330494109,1719509435500,-5796.35817051,0.0002285,3]
[330494110,1719509435509,-5138.29370411,0.00022851,3]
[330494111,1719509435519,-161.64944397,0.00022851,2]
[330494112,1719509435528,-196.16276,0.00022853,7]
[330494113,1719509435537,-151.0,0.00022853,7]
[330494114,1719509435547,-151.0,0.00022853,7]
[330494115,1719509435556,-151.0,0.00022853,7]
[330494116,1719509435565,-5796.35817051,0.00022857,3]
[330494117,1719509435575,-1896.75207388,0.00022858,2]
[330494118,1719509435584,-5138.29370411,0.0002286,3]
[330494119,1719509435594,-9486.39127481,0.0002286,3]
[330494120,1719509435608,-2209.37375079,0.0002286,3]
[330494121,1719509435619,-521.44331218,0.0002286,3]
[330494122,1719509435727,-3065.28778418,0.00017444,2]
[330494123,1719509435739,-263.47322908,0.00017444,2]
[330494154,1719509438528,2373.57182662,0.00011199,2]
[330494155,1719509438834,-365.01416679,0.00017444,2]
[330494156,1719509438846,-1367.26726312,0.00017444,2]
[330494157,1719509438858,-318.18006382,0.00017444,2]
[330494158,1719509438868,-40.77371978,0.00019389,2]
[330494159,1719509438880,-442.10499378,0.00019389,2]
[330494160,1719509438890,-258.71431171,0.00019863,2]
[330494161,1719509438902,-59.35168722,0.00019863,2]
[330494162,1719509438912,-1270.0,0.00020711,2]
[330494163,1719509438922,-151.0,0.000225,7]
[330494164,1719509438944,-2947.13132643,0.0002286,3]
[330494165,1719509438960,-916.92440523,0.0002286,3]
[330494166,1719509438974,-709.08266212,0.0002286,3]
[330494167,1719509438988,-598.72777994,0.0002286,3]
[330494168,1719509438999,-2998.83842422,0.0002286,3]
[330494169,1719509439012,-2686.0,0.0002286,3]
[330494170,1719509439043,-4051.41803612,0.0002286,3]
[330494171,1719509439057,-2007.1187,0.0002286,3]
[330494172,1719509439073,-3671.50595196,0.0002286,3]
[330494173,1719509439085,-1002.76729337,0.00022863,3]
[330494174,1719509439101,-4793.59087714,0.00022863,3]
[330494175,1719509439115,-5138.29370411,0.00022863,3]
[330494176,1719509439128,-444.6593,0.00022864,2]
[330494177,1719509439139,-151.0,0.0002287,7]
[330494178,1719509439152,-151.0,0.0002287,7]
[330494179,1719509439163,-520.209097,0.0002287,7]
[330494180,1719509439175,-520.209097,0.0002287,7]
[330494181,1719509439185,-151.0,0.0002287,7]
[330494182,1719509439200,-151.0,0.0002287,7]
[330494183,1719509439211,-151.0,0.0002287,7]
[330494184,1719509439222,-5796.35817051,0.0002287,3]
[330494185,1719509439233,-5138.29370411,0.0002287,3]
[330494186,1719509439245,-151.0,0.0002287,7]
[330494187,1719509439256,-151.0,0.0002287,7]
[330494188,1719509439267,-151.0,0.0002287,7]
[330494189,1719509439278,-300.668428,0.0002287,7]
[330494190,1719509439289,-218.280347,0.0002287,7]
[330494191,1719509439301,-218.280347,0.0002287,7]
[330494192,1719509439312,-151.0,0.0002287,7]
[330494193,1719509439323,-151.0,0.0002287,7]
[330494194,1719509439334,-28981.7908525,0.0002287,3]
[330494195,1719509439345,-30829.7622247,0.0002287,3]
[330494196,1719509439357,-5138.29370411,0.00022871,3]
[330494197,1719509439368,-151.0,0.00022873,7]
[330494198,1719509439379,-151.0,0.00022873,7]
[330494199,1719509439391,-167.366557,0.00022873,7]
[330494200,1719509439402,-151.0,0.00022873,7]
[330494201,1719509439414,-254.271329,0.00022873,7]
[330494202,1719509439425,-338.217794,0.00022873,7]
[330494203,1719509439435,-254.271329,0.00022873,7]
[330494204,1719509439447,-151.0,0.00022873,7]
[330494206,1719509439458,-338.217794,0.00022873,7]
[330494207,1719509439469,-924.565921,0.00022873,7]
[330494208,1719509439479,-924.565921,0.00022873,7]
[330494209,1719509439491,-151.0,0.00022873,7]
[330494210,1719509439501,-151.0,0.00022873,7]
[330494211,1719509439512,-151.0,0.00022873,7]
[330494212,1719509439523,-173.336137,0.00022873,7]
[330494213,1719509439533,-151.0,0.00022873,7]
[330494214,1719509439545,-5138.29370411,0.00022874,3]
[330494215,1719509439556,-5138.29370411,0.00022876,3]
[330494216,1719509439567,-5138.29370411,0.00022879,3]
[330494217,1719509439578,-2700.82665848,0.0002288,2]
[330494218,1719509439590,-151.0,0.0002288,7]
[330494220,1719509439602,-151.0,0.0002288,7]
[330494221,1719509439613,-151.0,0.0002288,7]
[330494223,1719509439625,-151.0,0.0002288,7]
[330494224,1719509439636,-151.0,0.0002288,7]
[330494225,1719509439646,-151.0,0.0002288,7]
[330494226,1719509439658,-151.0,0.0002288,7]
[330494227,1719509439669,-251.033955,0.0002288,7]
[330494228,1719509439680,-151.0,0.0002288,7]
[330494229,1719509439693,-251.033955,0.0002288,7]
[330494230,1719509439704,-403.171328,0.0002288,7]
[330494231,1719509439715,-403.171328,0.0002288,7]
[330494232,1719509439725,-151.0,0.0002288,7]
[330494233,1719509439735,-151.0,0.0002288,7]
[330494234,1719509439746,-421.3,0.0002288,7]
[330494235,1719509439757,-421.3,0.0002288,7]
[330494236,1719509439769,-151.0,0.0002288,7]
[330494237,1719509439779,-159.846592,0.0002288,7]
[330494238,1719509439790,-151.0,0.0002288,7]
[330494239,1719509439801,-151.0,0.0002288,7]
[330494242,1719509440361,-151.0,0.0002288,7]
[330494243,1719509440380,-151.0,0.0002288,7]
[330494244,1719509440390,-151.0,0.0002288,7]
[330494245,1719509440401,-920.634983,0.0002288,7]
[330494246,1719509440412,-920.634983,0.0002288,7]
[330494247,1719509440423,-151.0,0.0002288,7]
[330494248,1719509440434,-151.0,0.0002288,7]
[330494249,1719509440445,-151.0,0.0002288,7]
[330494250,1719509440456,-259.076808,0.0002288,7]
[330494251,1719509440467,-259.076808,0.0002288,7]
[330494252,1719509440477,-358.579539,0.0002288,7]
[330494253,1719509440487,-358.579539,0.0002288,7]
[330494254,1719509440497,-151.0,0.0002288,7]
[330494255,1719509440508,-56521.2307452,0.0002288,3]
[330494256,1719509440519,-2700.82665839,0.00022881,2]
[330494257,1719509440530,-2700.82665839,0.00022882,2]
[330494258,1719509440541,-2700.82665839,0.00022883,2]
[330494259,1719509440551,-151.0,0.00022883,7]
[330494260,1719509440560,-924.565921,0.00022883,7]
[330494261,1719509440571,-924.565921,0.00022883,7]
[330494262,1719509440582,-151.0,0.00022883,7]
[330494263,1719509440592,-151.0,0.00022883,7]
[330494264,1719509440603,-151.0,0.00022883,7]
[330494265,1719509440613,-151.0,0.00022883,7]
[330494266,1719509440623,-2700.82665839,0.00022884,2]
[330494267,1719509440633,-151.0,0.00022884,7]
[330494268,1719509440644,-151.0,0.00022884,7]
[330494269,1719509440654,-167.366557,0.00022884,7]
[330494270,1719509440665,-151.0,0.00022884,7]
[330494271,1719509440676,-254.271329,0.00022884,7]
[330494272,1719509440687,-338.217794,0.00022884,7]
[330494273,1719509440699,-254.271329,0.00022884,7]
[330494274,1719509440709,-338.217794,0.00022884,7]
[330494275,1719509440719,-2700.82665839,0.00022885,2]
[330494276,1719509440733,-2700.82665839,0.00022885,2]
[330494277,1719509440744,-2700.82665839,0.00022886,2]
[330494278,1719509440754,-2700.82665839,0.00022887,2]
[330494279,1719509440765,-2700.82665839,0.00022888,2]
[330494280,1719509440776,-183.81698287,0.00022889,2]
[330494281,1719509440788,-216.0275,0.00022889,7]
[330494282,1719509440798,-299.638432,0.00022889,7]
[330494283,1719509440810,-218.280347,0.00022889,7]
[330494284,1719509440821,-218.280347,0.00022889,7]
[330494285,1719509440833,-151.0,0.00022889,7]
[330494286,1719509440843,-1102.73289755,0.00022889,2]
[330494287,1719509440853,-151.0,0.00022889,7]
[330494288,1719509440864,-2700.82665839,0.00022889,2]
[330494289,1719509440875,-1102.73289753,0.0002289,2]
[330494290,1719509440886,-191.29914186,0.0002289,2]
[330494291,1719509440897,-151.0,0.0002289,7]
[330494292,1719509440907,-2700.82665839,0.0002289,2]
[330494293,1719509440917,-151.0,0.0002289,7]
[330494294,1719509440928,-151.0,0.0002289,7]
[330494295,1719509440938,-520.209097,0.0002289,7]
[330494296,1719509440951,-520.209097,0.0002289,7]
[330494297,1719509440962,-151.0,0.0002289,7]
[330494298,1719509440972,-151.0,0.0002289,7]
[330494299,1719509440983,-151.0,0.0002289,7]
[330494300,1719509440994,-151.0,0.0002289,7]
[330494301,1719509441005,-151.0,0.0002289,7]
[330494302,1719509441015,-182.228303,0.0002289,7]
[330494303,1719509441026,-151.0,0.0002289,7]
[330494304,1719509441037,-151.0,0.0002289,7]
[330494305,1719509441047,-151.0,0.0002289,7]
[330494306,1719509441057,-251.033955,0.0002289,7]
[330494307,1719509441068,-151.0,0.0002289,7]
[330494308,1719509441080,-251.033955,0.0002289,7]
[330494309,1719509441090,-403.171328,0.0002289,7]
[330494310,1719509441100,-403.171328,0.0002289,7]
[330494311,1719509441110,-151.0,0.0002289,7]
[330494312,1719509441126,-151.0,0.0002289,7]
[330494313,1719509441136,-421.3,0.0002289,7]
[330494314,1719509441147,-421.3,0.0002289,7]
[330494315,1719509441158,-151.0,0.0002289,7]
[330494316,1719509441168,-8328.11025038,0.0002289,2]
[330494317,1719509441179,-151.0,0.0002289,7]
[330494318,1719509441190,-189.990422,0.0002289,7]
[330494319,1719509441201,-151.0,0.0002289,7]
[330494320,1719509441211,-151.0,0.0002289,7]
[330494321,1719509441222,-593.29470806,0.0002289,2]
[330494322,1719509441232,-920.634983,0.0002289,7]
[330494323,1719509441242,-920.634983,0.0002289,7]
[330494324,1719509441252,-151.0,0.0002289,7]
[330494325,1719509441263,-151.0,0.0002289,7]
[330494326,1719509441274,-259.076808,0.0002289,7]
[330494327,1719509441284,-259.076808,0.0002289,7]
[330494328,1719509441294,-358.579539,0.0002289,7]
[330494329,1719509441304,-89448.96965204,0.0002289,2]
[330494330,1719509441314,-358.579539,0.0002289,7]
[330494331,1719509441325,-151.0,0.0002289,7]
[330494332,1719509441335,-318.11062295,0.0002289,2]
[330494333,1719509441345,-365.47794762,0.00022899,2]
[330494334,1719509441355,-2000.0,0.000229,2]
[330494335,1719509441364,-490.0,0.000229,5]
[330494336,1719509441375,-490.0,0.000229,5]
[330494337,1719509441385,-257.0,0.000229,2]
[330494338,1719509441396,-258.0,0.000229,2]
[330494339,1719509441406,-191.0,0.000229,5]
[330494340,1719509441416,-191.0,0.000229,5]
[330494341,1719509441427,-739.0,0.000229,11]
[330494342,1719509441438,-168.18287931,0.000229,2]
[330494343,1719509441449,-151.0,0.000229,7]
[330494344,1719509441459,-151.0,0.000229,7]
[330494345,1719509441469,-167.366557,0.000229,7]
[330494346,1719509441480,-151.0,0.000229,7]
[330494347,1719509441490,-254.271329,0.000229,7]
[330494348,1719509441500,-338.217794,0.000229,7]
[330494349,1719509441510,-254.271329,0.000229,7]
[330494350,1719509441520,-338.217794,0.000229,7]
[330494351,1719509441531,-151.0,0.000229,7]
[330494352,1719509441542,-151.0,0.000229,7]
[330494353,1719509441552,-151.0,0.000229,7]
[330494354,1719509441562,-1224.90514239,0.00022906,2]
[330494355,1719509441572,-5138.29370411,0.00022926,3]
[330494356,1719509441582,-158.5976384,0.00022936,2]
[330494357,1719509441592,-25691.4685206,0.00022954,3]
[330494358,1719509441602,-151.0,0.00022954,7]
[330494359,1719509441612,-5138.29370411,0.00022954,3]
[330494360,1719509441622,-150.5,0.0002296,30]
[330494361,1719509441633,-150.5,0.0002296,30]
[330494362,1719509441644,-151.0,0.0002296,7]
[330494363,1719509441655,-151.0,0.0002296,7]
[330494364,1719509441666,-161.78333553,0.00022964,2]
[330494365,1719509441676,-20553.1748164,0.00022964,3]
[330494366,1719509441687,-246.425895,0.00022964,7]
[330494367,1719509441700,-151.0,0.00022964,7]
[330494368,1719509441711,-500.0,0.00022964,7]
[330494369,1719509441722,-500.0,0.00022964,7]
[330494370,1719509441733,-170.732672,0.00022964,7]
[330494371,1719509441743,-151.0,0.00022964,7]
[330494372,1719509441754,-520.209097,0.00022964,7]
[330494373,1719509441765,-520.209097,0.00022964,7]
[330494374,1719509441777,-151.0,0.00022964,7]
[330494375,1719509441787,-151.0,0.00022964,7]
[330494376,1719509441799,-151.0,0.00022964,7]
[330494377,1719509441810,-151.0,0.00022964,7]
[330494378,1719509441820,-151.0,0.00022964,7]
[330494379,1719509441831,-151.0,0.00022964,7]
[330494380,1719509441841,-251.033955,0.00022964,7]
[330494381,1719509441851,-151.0,0.00022964,7]
[330494382,1719509441861,-251.033955,0.00022964,7]
[330494383,1719509441872,-403.171328,0.00022964,7]
[330494384,1719509441882,-403.171328,0.00022964,7]
[330494385,1719509441893,-151.0,0.00022964,7]
[330494386,1719509441903,-151.0,0.00022964,7]
[330494387,1719509441913,-421.3,0.00022964,7]
[330494388,1719509441923,-421.3,0.00022964,7]
[330494389,1719509441933,-151.0,0.00022964,7]
[330494390,1719509441943,-152.121593,0.00022964,7]
[330494391,1719509441954,-151.0,0.00022964,7]
[330494392,1719509441964,-924.565921,0.00022964,7]
[330494393,1719509441975,-924.565921,0.00022964,7]
[330494394,1719509441985,-151.0,0.00022964,7]
[330494395,1719509441996,-601.04110676,0.0002297,2]
[330494396,1719509442006,-150.5,0.0002297,30]
[330494397,1719509442016,-150.5,0.0002297,30]
[330494398,1719509442026,-153.99,0.0002297,30]
[330494399,1719509442036,-15729.86588818,0.00022974,2]
[330494400,1719509442047,-151.0,0.00022974,7]
[330494401,1719509442057,-520.209097,0.00022974,7]
[330494402,1719509442068,-520.209097,0.00022974,7]
[330494403,1719509442078,-151.0,0.00022974,7]
[330494404,1719509442089,-151.0,0.00022974,7]
[330494405,1719509442099,-576.4877457,0.00022974,2]
[330494406,1719509442112,-471.9159403,0.00022974,2]
[330494407,1719509442123,-367.3441349,0.00022974,2]
[330494408,1719509442134,-151.0,0.00022974,7]
[330494409,1719509442145,-151.0,0.00022974,7]
[330494410,1719509442156,-167.366557,0.00022974,7]
[330494411,1719509442167,-151.0,0.00022974,7]
[330494412,1719509442177,-167.366557,0.00022974,7]
[330494413,1719509442187,-151.0,0.00022974,7]
[330494414,1719509442201,-1150.4120639,0.00022974,2]
[330494415,1719509442212,-943.2982566,0.00022974,2]
[330494416,1719509442222,-736.1844493,0.00022974,2]
[330494417,1719509442233,-254.271329,0.00022974,7]
[330494418,1719509442244,-254.271329,0.00022974,7]
[330494419,1719509442253,-338.217794,0.00022974,7]
[330494420,1719509442263,-151.0,0.00022974,7]
[330494421,1719509442274,-338.217794,0.00022974,7]
[330494422,1719509442284,-924.565921,0.00022974,7]
[330494423,1719509442295,-924.565921,0.00022974,7]
[330494424,1719509442305,-8036.9859055,0.00022974,2]
[330494425,1719509442316,-6590.0515397,0.00022974,2]
[330494426,1719509442325,-5143.1171739,0.00022974,2]
[330494427,1719509442336,-151.0,0.00022974,7]
[330494428,1719509442346,-151.0,0.00022974,7]
[330494429,1719509442357,-4029.5873291,0.00022974,2]
[330494430,1719509442367,-3304.1227763,0.00022974,2]
[330494431,1719509442377,-2578.6582234,0.00022974,2]
[330494432,1719509442387,-151.0,0.00022974,7]
[330494433,1719509442397,-151.0,0.00022974,7]
[330494434,1719509442407,-920.634983,0.00022974,7]
[330494435,1719509442417,-920.634983,0.00022974,7]
[330494436,1719509442428,-151.0,0.00022974,7]
[330494437,1719509442438,-151.0,0.00022974,7]
[330494438,1719509442450,-259.076808,0.00022974,7]
[330494439,1719509442460,-259.076808,0.00022974,7]
[330494440,1719509442470,-358.579539,0.00022974,7]
[330494441,1719509442480,-358.579539,0.00022974,7]
[330494442,1719509442491,-2946.4996113,0.00022974,2]
[330494444,1719509442501,-2416.0281639,0.00022974,2]
[330494446,1719509442511,-1885.5567164,0.00022974,2]
[330494448,1719509442520,-218.280347,0.00022974,7]
[330494450,1719509442530,-218.280347,0.00022974,7]
[330494452,1719509442541,-33748.1158489,0.00022974,2]
[330494454,1719509442551,-27695.3412921,0.00022974,2]
[330494456,1719509442561,-21642.5667353,0.00022974,2]
[330494458,1719509442571,-261.228063,0.00022974,7]
[330494460,1719509442581,-1224.90514239,0.00022978,2]
[330494462,1719509442591,-237.89338726,0.00022979,2]
[330494463,1719509442601,-150.5,0.0002298,30]
[330494464,1719509442611,-152.64,0.0002298,30]
[330494465,1719509442621,-190.5,0.0002298,30]
[330494466,1719509442632,-150.5,0.0002298,30]
[330494467,1719509442642,-150.5,0.0002298,30]
[330494468,1719509442652,-254.0340817,0.0002298,7]
[330494469,1719509442663,-500.0,0.0002298,7]
[330494470,1719509442673,-500.0,0.0002298,7]
[330494471,1719509442683,-500.0,0.0002298,7]
[330494472,1719509442693,-2.59807323,0.0002298,7]
[330494473,1719509442709,-497.40192677,0.0002298,7]
[330494474,1719509442719,-151.0,0.0002298,7]
[330494475,1719509442729,-151.0,0.0002298,7]
[330494476,1719509442740,-151.0,0.0002298,7]
[330494477,1719509442750,-151.0,0.0002298,7]
[330494478,1719509442760,-185.033486,0.0002298,7]
[330494479,1719509442770,-151.0,0.0002298,7]
[330494480,1719509442779,-251.033955,0.0002298,7]
[330494481,1719509442789,-151.0,0.0002298,7]
[330494482,1719509442799,-251.033955,0.0002298,7]
[330494483,1719509442809,-403.171328,0.0002298,7]
[330494484,1719509442819,-403.171328,0.0002298,7]
[330494485,1719509442829,-151.0,0.0002298,7]
[330494487,1719509442838,-151.0,0.0002298,7]
[330494488,1719509442848,-421.3,0.0002298,7]
[330494489,1719509442858,-21.70519582,0.0002298,7]
[330494490,1719509443816,-399.59480418,0.0002298,7]
[330494491,1719509443825,-151.0,0.0002298,7]
[330494492,1719509443835,-220.0,0.00022986,3]
[330494493,1719509443844,-16905.43957803,0.00022989,7]
[330494494,1719509443854,-2534.41332653,0.00022989,2]
[330494495,1719509443866,-4881.0,0.00022989,2]
[330494496,1719509443877,-11591.42915868,0.00022989,2]
[330494497,1719509443888,-5213.2416444,0.00022989,2]
[330494498,1719509443900,-11663.56,0.00022989,2]
[330494499,1719509443911,-264.135,0.00022989,2]
[330494500,1719509443922,-5197.1691282,0.00022989,2]
[330494501,1719509443933,-113648.89383462,0.00022989,2]
[330494502,1719509443944,-515.28705452,0.00022989,2]
[330494503,1719509444046,-6483.28042484,0.00022989,2]
[330494504,1719509444057,-1701.42867512,0.00022989,2]
[330494505,1719509444068,-331.4383183,0.00022989,2]
[330494506,1719509444080,-787.57542066,0.00022989,2]
[330494507,1719509444091,-877.60077386,0.00022989,2]
[330494508,1719509444895,-206.07168017,0.00013128,2]
[330494509,1719509444905,-152.44331983,0.0002289,2]
[330494510,1719509445016,-600.0,0.0002289,2]
[330494511,1719509445027,-350.2895777,0.0002289,2]
[330494512,1719509445038,-101302.20601969,0.00022989,2]
[330494513,1719509445094,-271.205,0.00022989,2]
[330494514,1719509445105,-453.0,0.00022989,2]
[330494515,1719509445120,-539.06283141,0.00022989,2]
[330494516,1719509445253,-1107.68259837,0.00022989,2]
[330494517,1719509445266,-3363.1171214,0.00022989,2]
[330494518,1719509445277,-881.21664269,0.00022989,2]
[330494519,1719509445288,-130219.55846571,0.00022989,2]